Cogmind - Beta 17 @@@ ROGUE MODE // 2026.07.24 @ 23:49:45 Player: Empythree Result: Destroyed by G-34 Mercenary with Small Laser Performance ------------- Evolutions (1) 500 Regions Visited (2) 400 Robots Destroyed (14) 70 Value Destroyed (327) 327 Prototype IDs (1) 20 Alien Tech Used (0) 0 Bonus (0) 0 TOTAL SCORE: 1317 Bonus ------- None Cogmind --------- Core Integrity 0/400 Matter 219/300 Energy 95/100 System Corruption 5% Temperature Cool (33) Movement Core (150) Ox2 Location -9/Materials Parts ------- > --- POWER (1) -------- (None) > --- PROPULSION (4) --- (None) > --- UTILITY (2) ------ Small Storage Unit > --- WEAPON (2) ------- Hammer > --- INVENTORY (8) ---- Faulty Improved Assault Rifle Peak State ------------ > --- POWER ------------ Improved Ion Engine > --- PROPULSION ------- Improved Hover Unit Improved Hover Unit Improved Hover Unit > --- UTILITY ---------- Small Storage Unit Light Armor Plating > --- WEAPON ----------- Improved Assault Rifle Improved Assault Rifle > --- INVENTORY -------- Improved Ion Engine Compact Wheel Compact Wheel Shield Generator Heavy Assault Rifle Improved Assault Rifle [Rating: 17] Favorites ----------- Power Improved Ion Engine Engine Improved Ion Engine Propulsion Improved Hover Unit Wheel Compact Wheel Hover Unit Improved Hover Unit Utility Small Storage Unit Device Shield Generator Storage Small Storage Unit Processor Targeting Computer Protection Light Armor Plating Weapon Improved Assault Rifle Energy Gun Small Laser Ballistic Gun Improved Assault Rifle Impact Weapon Hammer Build | -11 -10 -9 ------- Run | Yrd Mat Mat Slots Evolved 2 | . . 2 Power . | . . . Propulsion 2 | . . 2 Utility . | . . . Weapon . | . . . Parts Attached 25 | 6 9 10 Power 4 | 1 1 2 Engine 4 | 1 1 2 Core . | . . . Reactor . | . . . Propulsion 7 | 2 3 2 Treads . | . . . Leg . | . . . Wheel 3 | 2 1 . Hover 4 | . 2 2 Flight . | . . . Utility 5 | 1 2 2 Device 1 | . . 1 Storage 1 | 1 . . Processor 1 | . 1 . Hackware . | . . . Protection 2 | . 1 1 Artifact . | . . . Weapon 9 | 2 3 4 Energy Gun 2 | 2 . . Energy Cannon . | . . . Ballistic Gun 6 | . 3 3 Ballistic Cannon . | . . . Launcher . | . . . Special Weapon . | . . . Impact Weapon 1 | . . 1 Slashing Weapon . | . . . Piercing Weapon . | . . . Special Melee Weapon . | . . . Unidentified Prototypes 1 | . 1 . Parts Lost 17 | . 1 16 Power 2 | . . 2 Propulsion 6 | . . 6 Utility 3 | . . 3 Weapon 6 | . 1 5 Highest Loss Streak 16 | . 1 16 To Critical Strikes . | . . . Average Backups 5 | 3 5 5 Power . | . 1 . Propulsion 2 | 1 2 1 Utility . | . . . Weapon 1 | 1 1 1 Tool/Special . | . . . Unused Backups 7 | . 6 1 Power 1 | . 1 . Propulsion 4 | . 4 . Utility . | . . . Weapon 2 | . 1 1 Tool/Special . | . . . Average Slot Usage (%) 82 | . 96 68 Engine 11 | . 14 8 Wheel 10 | . 19 . Hover 14 | . 8 20 Storage 12 | . 14 11 Processor 4 | . 9 . Protection 4 | . 1 8 Energy Gun 6 | . 13 . Ballistic Gun 16 | . 14 19 Peak Build Rating 17 | 6 15 17 Average Rating 10 | 3 10 12 On Entrance 7 | . 6 15 Avg Prop Armor Cover (%) . | . . . Naked Turns . | . . . Heaviest Build 21 | 13 21 21 Greatest Support 32 | 26 32 21 Greatest Overweight (x) 4 | . 1 4 Average Overweight (x) . | . . . Largest Inventory Capacity 8 | 8 8 8 Average Capacity 7 | 7 8 8 Most Carried 8 | 6 8 7 Average Carried 5 | 3 5 5 Final Capacity 8 | 8 8 8 Final Carried 7 | 4 7 1 Class Distribution -------------------- 100% | Mutant Dominant Class ---------------- Mutant | -10/Materials Mutant | -9/Materials Resources | -11 -10 -9 ----------- Run | Yrd Mat Mat Matter Collected 444 | 220 155 69 Remotely . | . . . Salvage Created 451 | . 164 287 Parts 26 | . 6 20 Haulers Intercepted . | . . . Recyclers Shooed . | . . . Parts Field Recycled . | . . . Retrieved Matter . | . . . Parts Self-Destructed . | . . . Prevented . | . . . Parts Restored . | . . . Kills | -11 -10 -9 ------- Run | Yrd Mat Mat Combat Hostiles Destroyed 13 | . 5 8 Guns 13 | . 5 8 Classes Destroyed 5 | . 3 2 Watcher 1 | . 1 . Swarmer 6 | . 3 3 Grunt 5 | . 2 3 Brawler 1 | . . 1 Sentry 1 | . . 1 Best Kill Streak 8 | . 3 8 Combat Bots Only 8 | . 3 8 Max Kills in Single Turn 2 | . 2 2 Gunslinging 1 | . . 1 Exploded . | . . . Melee . | . . . Uniques/NPCs Destroyed . | . . . Combat | -11 -10 -9 -------- Run | Yrd Mat Mat Hostile Shots Fired 258 | . 28 230 Missed 64 | . 6 58 Hits 194 | . 22 172 Melee 2 | . . 2 Projectile 192 | . 22 170 Critical Strikes 1 | . . 1 Damage Taken 2046 | . 229 1817 Core 455 | . 54 401 Absorbed by Shields 27 | . . 27 Core Remaining (%) 89 | 100 78 . Volleys Fired 39 | . 15 24 Largest 2 | . 2 2 Hottest 80 | . 80 46 Shots Fired 64 | . 30 34 Gun 64 | . 30 34 Cannon . | . . . Launcher . | . . . Special . | . . . Kinetic 48 | . 14 34 Thermal 8 | . 8 . Explosive . | . . . Electromagnetic 8 | . 8 . Robot Hit Streak 8 | . 7 8 Robot Miss Streak 3 | . 2 3 Penetration Max . | . . . Secondary Targets 5 | . 1 4 Max Gunslinging Chain 1 | . 1 1 Shots Hit Robots 46 | . 21 25 Core Hits 20 | . 8 12 Critical Kills . | . . . Critical Parts Destroyed 2 | . . 2 Critical Strikes 2 | . . 2 Destroy 1 | . . 1 Smash 1 | . . 1 Melee Attacks 3 | . . 3 Impact 3 | . . 3 Slashing . | . . . Piercing . | . . . Sneak Attacks . | . . . Combat Hostiles . | . . . Follow-up Attacks . | . . . Damage Inflicted 643 | . 277 366 Guns 604 | . 277 327 Cannons . | . . . Explosions . | . . . Melee 39 | . . 39 Ramming . | . . . Kinetic 463 | . 136 327 Thermal 67 | . 67 . Explosive . | . . . Electromagnetic 74 | . 74 . Impact 39 | . . 39 Slashing . | . . . Piercing . | . . . Highest Corruption 5 | . . 5 Average Corruption 2 | . . 2 Corruption Purged . | . . . Corruption Blocked . | . . . Effects 4 | . . 4 Energy Discharges 2 | . . 2 Misfires 1 | . . 1 Weapon Failures 1 | . . 1 Overload Shots . | . . . Overflow Damage 20 | . . 20 Projectiles . | . . . Explosions . | . . . Melee 20 | . . 20 Knockbacks . | . . . Impact . | . . . Kinetic . | . . . Secondary . | . . . Self-Inflicted Damage . | . . . Shots . | . . . Rammed . | . . . Targets Rammed . | . . . Kicked . | . . . Crushed . | . . . Highest Temperature 170 | . 170 20 Average Temperature 51 | . 69 8 Received Heat Transfer 780 | . 108 672 Siege Activations . | . . . Martial Activations . | . . . Shielding Activations . | . . . Robots Disrupted . | . . . Combat Hostiles . | . . . Robots Corrupted . | . . . Combat Hostiles . | . . . Parts Fried . | . . . Impact Corruptions 1 | . . 1 Robots Melted . | . . . Combat Hostiles . | . . . Parts Melted . | . . . Heat Transferred 150 | . 150 . Parts Sabotaged . | . . . Parts Stolen . | . . . Parts Stripped . | . . . Power Chain Reactions . | . . . Alert | -11 -10 -9 ------- Run | Yrd Mat Mat Maximum Alert Level 1 | . . 1 Low Security (%) 95 | 100 100 89 Level 1 4 | . . 10 Level 2 . | . . . Level 3 . | . . . Level 4 . | . . . Level 5 . | . . . High Security . | . . . Max Security . | . . . Peak Influence 245 | . 74 245 Initial 18 | . . 18 Average 40 | . 22 69 Influence Increases 556 | . 144 412 Destroy 0b10 Robot/C 260 | . 100 160 Destroy 0b10 Robot/NC 5 | . 5 . Destroy Leader 42 | . 12 30 Successful Hack 24 | . 12 12 Partial Spotted 30 | . . 30 Lose Combat Pursuer 195 | . 15 180 Influence Decreases 401 | . 100 301 Entered New Map 26 | . . 26 Time Decay 205 | . 90 115 Lost Part 170 | . 10 160 Squads Dispatched 3 | . . 3 Investigation 1 | . . 1 Extermination . | . . . Reinforcement 2 | . . 2 Assault . | . . . Garrison . | . . . Intercept . | . . . Searches Triggered . | . . . Construction Impeded . | . . . Haulers Reinforced . | . . . Active Scanning Responses . | . . . Cargo Convoy Interrupts . | . . . Stealth | -11 -10 -9 --------- Run | Yrd Mat Mat Distress Signals 2 | . . 2 Communications Jammed . | . . . Distress Signals . | . . . Times Spotted 41 | . 8 33 Peak Tracking Total 20 | . 3 20 Tactical Retreats 4 | . 1 3 Traps | -11 -10 -9 ------- Run | Yrd Mat Mat Traps Triggered . | . . . Indirectly . | . . . Trap Hack Attempts . | . . . Triggered . | . . . Disarmed . | . . . Reprogrammed . | . . . Reused . | . . . Traps Extracted . | . . . Installed . | . . . Triggered . | . . . Machines | -11 -10 -9 ---------- Run | Yrd Mat Mat Machines Disabled . | . . . Max in Single Turn . | . . . Machines Repaired . | . . . Machines Dismantled . | . . . Machines Sabotaged . | . . . Overloaded Fab Kills . | . . . Hacking | -11 -10 -9 --------- Run | Yrd Mat Mat Machines Accessed 2 | . 1 1 Terminals 1 | . 1 . Fabricators . | . . . Repair Stations . | . . . Recycling Units . | . . . Scanalyzers 1 | . . 1 Garrison Access . | . . . Total Hacks 4 | . 1 3 Successful 2 | . 1 1 Failed 2 | . . 2 Catastrophic 1 | . . 1 Database Lockouts . | . . . Manual . | . . . Terminals 1 | . 1 . Fabricators . | . . . Repair Stations . | . . . Recycling Units . | . . . Scanalyzers 3 | . . 3 Garrison Access . | . . . Terminal Hacks 1 | . 1 . Record 1 | . 1 . Fabricator Hacks . | . . . Repair Station Hacks . | . . . Recycling Unit Hacks . | . . . Scanalyzer 1 | . . 1 Retrieve Study 1 | . . 1 Garrison Access Hacks . | . . . Unauthorized Hacks . | . . . Terminals . | . . . Fabricators . | . . . Repair Stations . | . . . Recycling Units . | . . . Scanalyzers . | . . . Garrison Access . | . . . Data Cores Recovered . | . . . Used . | . . . Hacking Detections 1 | . . 1 Full Trace Events 1 | . . 1 Feedback Events 1 | . . 1 Corruption 1 | . . 1 Feedback Blocked . | . . . Robot Schematics Acquired . | . . . Robots Built . | . . . Authchips . | . . . Time . | . . . Total Robot Build Rating . | . . . Part Schematics Acquired . | . . . Parts Built . | . . . Authchips . | . . . Time . | . . . Total Part Build Rating . | . . . Part Studies Acquired 1 | . . 1 Parts Repaired . | . . . Time . | . . . Parts Recycled . | . . . Recycled Matter . | . . . Retrieved Matter . | . . . Retrieved Components . | . . . Parts Scanalyzed . | . . . Part Schematics Acquired . | . . . Parts Damaged . | . . . Bothacking | -11 -10 -9 ------------ Run | Yrd Mat Mat Used RIF Installer . | . . . Robots Hacked . | . . . Non-combat . | . . . Combat . | . . . Robot Hacks Applied . | . . . Relay Couplers Released . | . . . Fabnet Peak Effective % . | . . . Robots Rewired . | . . . Allies Hacked . | . . . Hacks Repelled . | . . . Allies | -11 -10 -9 -------- Run | Yrd Mat Mat Total Allies . | . . . Largest Group . | . . . Highest-Rated Group . | . . . Highest-Rated Ally . | . . . Total Orders . | . . . Ally Attacks . | . . . Total Damage . | . . . Kills . | . . . Allies Corrupted . | . . . Allies Melted . | . . . Intel | -11 -10 -9 ------- Run | Yrd Mat Mat Active Infowar (turns) . | . . . Robot Analysis Total . | . . . Derelict Logs Recovered . | . . . Drone Launches . | . . . Drone Recoveries . | . . . Exploration | -11 -10 -9 ------------- Run | Yrd Mat Mat Turns Passed 578 | 58 269 251 Spaces Moved 515 | 55 186 274 Core 19 | 17 . 2 Treads . | . . . Legs . | . . . Wheels 163 | 38 125 . Hover 333 | . 61 272 Flight . | . . . Fastest Speed 50 | 50 90 52 Average Speed 76 | 77 101 58 Slowest Speed 250 | 90 116 250 Overloaded Moves . | . . . Propulsion Burnouts . | . . . Robots Hopped . | . . . Potential Cave-ins . | . . . Cave-ins Triggered . | . . . Exploration Rate (%) 26 | 3 31 46 Regions Visited 2 Branch Regions . Pre-discovered Areas . | . . . Known Exits Taken . | . . . Unknown Exits Taken 2 | 1 1 . Scrap Searched . | . . . Spaces Dug . | . . . Terrain Destroyed . | . . . Melee . | . . . Projectile . | . . . AOE . | . . . Terrain Rammed . | . . . Walls Destroyed . | . . . Machines Disabled . | . . . Actions | -11 -10 -9 --------- Run | Yrd Mat Mat Total 638 | 70 240 328 Wait 10 | . 4 6 Move 513 | 54 185 274 Hop . | . . . Pick Up 31 | 10 16 5 Fast Attach 1 | . . 1 Attach 20 | 6 3 11 Detach 2 | . 1 1 Swap 8 | . 6 2 Drop 11 | . 10 1 Fire 39 | . 15 24 Melee 3 | . . 3 Ram . | . . . Kick . | . . . Crush . | . . . Escape Stasis . | . . . Rewire . | . . . Trap . | . . . Miscellaneous . | . . . Route ------- -11/Scrapyard -10/Materials (discovered 2 exits: *Mat / [*Min]) -9/Materials (discovered 1 exit: [*Min]) History --------- Turn | Location | Event 14 | -11/Scrapyard | Discovered new exit (range 15) 59 | -11/Scrapyard | Entered Materials 60 | -10/Materials | Met a group of wandering Federalists 173 | -10/Materials | Discovered new exit (range 11) 264 | -10/Materials | Discovered new exit (range 16) 322 | -10/Materials | Build established: Mutant 328 | -10/Materials | Entered another Materials area 328 | -9/Materials | Evolved 2 slots: Propulsion x2 453 | -9/Materials | Discovered new exit (range 6) 551 | -9/Materials | Core integrity fell below 50% 560 | -9/Materials | Destroyed 8 combat bots 562 | -9/Materials | Core integrity fell below 20% 579 | -9/Materials | Destroyed by G-34 Mercenary with Small Laser Last Messages --------------- (Destroy). 00561_ Destroyed Aluminum Leg. 00562_ Com. Wheel destroyed. 00564_ K-01 Serf collects debris. 00565_ System corrupted: Energy discharge (-16). 00566_ Com. Wheel destroyed. 00566_ K-01 Serf collects debris. 00569_ Lgt. Assault Rifle destroyed. 00569_ Acquired Hammer. [Achievement: Hydra] 00570_ K-01 Serf collects debris. 00573_ K-01 Serf cleans the Nuclear Reactor. 00577_ Imp. Ion Engine+ destroyed. 00577_ K-01 Serf collects debris. 00579_ Critical hit (Burn: +37). 00579_ G-47 Trooper suffers critical hit (Smash). 00579_ Destroyed Lgt. Nuclear Core. 00579_ G-47 Trooper system corrupted by crushing effect. Map ----- +----------------------------------------------------+ | | | | | | | | | | | | | | | | | | | | | ?????????????????????????????????????????????????? | | ?????????????????????????????????????????????????? | | ?????????????????????????????????????????????????? | | ?????????????????????????????????????????????????? | | ?????????????????????????????????????????????????? | | ?????????????????????????????????????????????????? | | ?????????????????????????????????????????????????? | | ?????????????????????????????????????????????????? | | ???????????????????????##########????????????????? | | ???????????????????????# k #????????????????? | | ???????????????????????# *""" #????????????????? | | ???????############+####[*""" #????????????????? | | ?????? !#=*""" #????????????????? | | ?????? *+=g%k= #????????????????? | | ?????? #g*""" #????????????????? | | ??????????########## #[@""" #????????????????? | | ???????????????#!! #gg""" #????????????????? | | ???????????????#!! #=[ #????????????????? | | ???????????????#!! ##########????????????????? | | ???????????????#! #?????????????????????????? | | ???????????????#!! #?????????????????????????? | | ???????????????#!! #?????????????????????????? | | ???????????????##### ###########???????????????? | | ???????????????????# ?????????????? | | ??????????#########"*= ?????????????? | | ?????????## " ?????????????? | | ?????????# = """ " ########??????????????? | | ?????????## """ " #?????????????????????? | | ??????????# """ " #?????????????????????? | | ??????????# "" #?????????????????????? | | ??????????# #" #?????????????????????? | | ??????????# !! #? #?????????????????????? | | ??????????# !! ## #?????????????????????? | | ??????????# + #?????????????????????? | | ??????????######/### #?????????????????????? | | ???????????????# ### #?????????????????????? | | ???????????????# ^ #?????????????????????? | | ???????????????# #?????????????????????? | | ???????????#####+## +?????????????????????? | | ???????????# [ # ![[ ######????????????????? | +----------------------------------------------------+ Best States ------------- Heat Dissipation 28 Energy Generation 14 Energy Capacity 265 Matter Stores 300 Matter Capacity 300 Sight Range 16 Terrain Scan Density 10 Armor Coverage 150 Evasion (%) 54 Targeting Accuracy 5 Item Schematics ----------------- None Robot Schematics ------------------ None Fabricated ------------ Nothing Repaired ---------- Nothing Studied --------- Imp. Ion Engine | -9/Materials | Hacked Alien Tech Used ----------------- None Achievements -------------- Hydra I Have A Map? Item+ There's More Where That Came From Challenges ------------ None Game ------ Seed GravitonContainmentPrototype Manual? 0 Play Time 00:19:41 Cumulative 8.7 hours Start 2026.07.24 @ 23:34:53 End 2026.07.24 @ 23:49:45 Sessions 1 Manual Loads 0 Difficulty Rogue Special Mode None Game No. 19 Rogue 17 Adventurer 2 Explorer 0 Win Type - Total 0 Types 0/0/0/0/0/0/0/0/0/0 Lore% 8 Gallery% 16 Achievement% 9 Wizard Run 0 Options --------- Layout 2 ASCII 0 Keyboard 0 Movement Numpad Keybinds 0 Fullscreen 1 Font 32/SmallcapsGlow Map View 50x44 Zoom Use 0% Tactical HUD 1 Map Filters NONE Filters NONE Steam 1 RUN: 8d8c4393-cfcd-4015-9088-bb583b90a9f3